bitfinex/quotes_BTCUSD_20240803
["timestamp","ask_amount","ask_price","bid_price","bid_amount"]
[1722714365214,0.2153,60495.0,60494.0,0.01]
[1722714365418,0.1882,60506.0,60501.0,0.01]
[1722714365643,0.16575089,60505.0,60501.0,0.01]
[1722714365852,0.16575089,60505.0,60493.0,0.02]
[1722714365980,0.1882,60506.0,60499.0,0.02]
[1722714366185,0.2153,60507.0,60506.0,0.02]
[1722714366399,0.0159,60516.0,60515.0,0.02]
[1722714366674,0.68570831,60526.0,60507.0,0.02]
[1722714366675,0.0159,60519.0,60507.0,0.02]
[1722714366885,0.0159,60519.0,60501.0,0.330569]
[1722714366886,0.08291805,60511.0,60508.0,0.17174661]
[1722714367177,0.16575089,60510.0,60498.0,0.02]
[1722714367423,0.165282,60503.0,60499.0,0.02]
[1722714367691,0.165282,60503.0,60486.0,0.00157439]
[1722714367692,0.16575089,60510.0,60503.0,0.01]
[1722714367929,0.16575089,60510.0,60498.0,0.02]
[1722714368241,0.49750831,60517.0,60488.0,0.02]
[1722714368242,0.16575089,60507.0,60488.0,0.02]
[1722714368372,0.16575089,60504.0,60489.0,0.02]
[1722714368570,0.08291805,60501.0,60484.0,0.02]
[1722714368747,0.16575089,60503.0,60485.0,0.17181288]
[1722714368748,0.330608,60495.0,60485.0,0.17181288]
[1722714369047,0.16575089,60494.0,60487.0,0.02]
[1722714369248,0.16575089,60494.0,60475.0,0.08291805]
[1722714369249,0.16575089,60494.0,60485.0,0.02]
[1722714369421,0.330574,60501.0,60475.0,0.08291805]
[1722714369422,0.1882,60506.0,60503.0,0.01]
[1722714369633,0.1882,60506.0,60488.0,0.08291805]
[1722714369634,0.16575089,60505.0,60499.0,0.02]
[1722714369823,0.16575089,60505.0,60489.0,0.00157439]
[1722714369824,0.330558,60504.0,60493.0,0.02]
[1722714370027,0.16575089,60503.0,60493.0,0.01]
[1722714370226,0.023,60502.0,60487.0,0.02]
[1722714370408,0.023,60502.0,60477.0,0.49750831]
[1722714370409,0.165301,60496.0,60489.0,0.02]
[1722714370611,0.16575089,60495.0,60487.0,0.02]
[1722714370837,0.08291805,60492.0,60478.0,0.00157439]
[1722714371063,0.08291805,60492.0,60479.0,0.01]
[1722714371064,0.330651,60487.0,60479.0,0.01]
[1722714371250,0.330651,60487.0,60467.0,0.00157439]
[1722714371251,0.16575089,60486.0,60481.0,0.02]
[1722714371450,0.0159,60487.0,60467.0,0.08291805]
[1722714371451,0.0159,60487.0,60486.0,0.02]
[1722714371649,0.0159,60487.0,60486.0,0.19181466]
[1722714371988,0.49750831,60505.0,60495.0,0.01]
[1722714372179,0.16575089,60504.0,60492.0,0.02]
[1722714372404,0.165281,60503.0,60495.0,0.01]
[1722714372557,0.16575089,60502.0,60495.0,0.01]
[1722714372734,0.505825,60510.0,60485.0,0.330659]
[1722714372735,0.2153,60509.0,60503.0,0.01]
[1722714372936,0.16575089,60508.0,60502.0,0.01]
[1722714373207,0.16575089,60508.0,60499.0,0.02]
[1722714373409,0.16575089,60508.0,60478.0,0.02]
[1722714373410,0.08291805,60501.0,60478.0,0.02]
[1722714373621,0.2416,60496.0,60479.0,0.00157439]
[1722714373775,0.1882,60495.0,60483.0,0.02]
[1722714373980,0.1882,60506.0,60492.0,0.02]
[1722714374216,0.1882,60506.0,60489.0,0.02]
[1722714374492,0.572186,60499.0,60483.0,0.02]
[1722714374653,0.330611,60494.0,60479.0,0.02]
[1722714374864,0.330611,60494.0,60473.0,0.330724]
[1722714374865,0.16575089,60498.0,60485.0,0.01]
[1722714375038,0.165317,60490.0,60484.0,0.01]
[1722714375257,0.16575089,60489.0,60479.0,0.02]
[1722714375461,0.16575089,60489.0,60483.0,0.01]
[1722714375665,0.3306,60496.0,60470.0,0.43074]
[1722714375666,0.4569,60509.0,60493.0,0.01]
[1722714376043,0.4569,60509.0,60504.0,0.01]
[1722714376044,0.16575089,60505.0,60504.0,0.01]
[1722714376235,0.2153,60509.0,60508.0,0.01]
[1722714376438,0.2153,60509.0,60506.0,0.01]
[1722714376439,0.16575089,60513.0,60509.0,0.01]
[1722714376553,0.16575089,60513.0,60511.0,0.01]
[1722714376761,0.04151055,60513.0,60508.0,0.02]
[1722714376958,0.04151055,60513.0,60478.0,0.02157439]
[1722714376959,0.04151055,60513.0,60497.0,0.02]
[1722714377182,0.08291805,60512.0,60493.0,0.02]
[1722714377531,0.16575089,60512.0,60507.0,0.02]
[1722714377733,0.1882,60514.0,60494.0,0.58042636]
[1722714377734,0.1882,60514.0,60509.0,0.02]
[1722714377935,0.16575089,60513.0,60493.0,0.02]
[1722714378155,0.16575089,60513.0,60509.0,0.01]
[1722714378380,0.1882,60514.0,60513.0,0.01]
[1722714378604,0.2153,60520.0,60510.0,0.01]
[1722714378605,0.16575089,60519.0,60510.0,0.01]
[1722714378807,0.330379,60537.0,60507.0,0.08291805]
[1722714378808,0.330426,60528.0,60514.0,0.10291805]
[1722714379025,0.1882,60532.0,60514.0,0.10291805]
[1722714379026,0.16575089,60527.0,60524.0,0.01]
[1722714379235,0.16575089,60527.0,60522.0,0.02]
[1722714379654,0.1882,60532.0,60528.0,0.01]
[1722714379855,0.16575089,60531.0,60529.0,0.01]
[1722714380053,0.1882,60540.0,60536.0,0.01]
[1722714380233,0.1882,60540.0,60514.0,0.08291805]
[1722714380234,0.16575089,60539.0,60538.0,0.01]
[1722714381016,0.545623,60547.0,60546.0,0.01]
[1722714381017,0.1233,60547.0,60546.0,0.01]
[1722714381222,0.34051601,60556.0,60552.0,0.01]
[1722714381223,0.01024101,60556.0,60552.0,0.01]
[1722714381574,0.01024101,60556.0,60550.0,0.02]
[1722714381781,0.21075089,60553.0,60552.0,0.01]
[1722714381961,0.045,60553.0,60550.0,0.02]
[1722714382158,0.045,60553.0,60540.0,0.1784]
[1722714382159,0.045,60553.0,60552.0,0.505441]
[1722714382445,0.045,60553.0,60552.0,0.515441]
[1722714382625,0.045,60553.0,60552.0,1.176029]
[1722714382856,0.045,60553.0,60552.0,1.01148589]
[1722714383270,0.045,60553.0,60552.0,1.48692989]
[1722714383483,0.045,60553.0,60552.0,2.24542529]
[1722714383692,0.01024101,60556.0,60555.0,0.900845]
[1722714383813,0.01024101,60556.0,60555.0,1.28383498]
[1722714384013,0.01024101,60556.0,60555.0,2.12591352]
[1722714384209,0.01024101,60561.0,60560.0,1.209025]
[1722714384409,0.01024101,60561.0,60560.0,1.52454394]
[1722714384835,0.01024101,60561.0,60560.0,1.62795031]
[1722714385127,0.01024101,60561.0,60560.0,2.18865031]
[1722714385306,0.01024101,60561.0,60560.0,1.66110031]
[1722714385509,0.010285,60564.0,60560.0,1.66110031]
[1722714385510,0.01024101,60566.0,60565.0,1.17578]
[1722714385795,0.01024101,60566.0,60565.0,1.44153089]
[1722714385927,0.01024101,60566.0,60565.0,1.44353089]
[1722714386130,0.01024101,60566.0,60565.0,1.78375389]
[1722714386336,0.01024101,60566.0,60565.0,1.44353089]
[1722714386539,0.01024101,60566.0,60565.0,1.11130789]
[1722714387123,0.01024101,60566.0,60565.0,1.11330789]
[1722714387319,0.01024101,60566.0,60565.0,1.11130789]
[1722714387762,0.01024101,60566.0,60565.0,1.44353089]
[1722714387970,0.01024101,60566.0,60565.0,1.56692916]
[1722714388169,0.01024101,60593.0,60570.0,1.220836]
[1722714388368,0.49750831,60583.0,60570.0,1.80478289]
[1722714388597,0.01024101,60593.0,60570.0,1.87503116]
[1722714388804,0.01024101,60593.0,60570.0,1.88703116]
[1722714389188,0.01024101,60593.0,60570.0,1.78363289]
[1722714389370,0.01024101,60593.0,60570.0,2.14697889]
[1722714389571,0.01024101,60593.0,60570.0,1.80478289]
[1722714390005,0.01024101,60593.0,60570.0,1.81478289]
[1722714390181,0.01024101,60593.0,60570.0,1.81678289]
[1722714390587,0.01024101,60593.0,60570.0,1.80678289]
[1722714390811,0.01024101,60593.0,60570.0,2.51678289]
[1722714390985,0.01024101,60593.0,60576.0,1.17757]
[1722714391186,0.01024101,60593.0,60576.0,1.44132089]
[1722714391544,0.01024101,60593.0,60576.0,1.78348389]
[1722714391756,0.01024101,60593.0,60592.0,0.175038]
[1722714391899,0.01024101,60593.0,60592.0,1.01094089]
[1722714392100,0.01024101,60593.0,60592.0,1.34101689]
[1722714392332,0.01024101,60593.0,60592.0,1.37616689]
[1722714392530,0.01024101,60593.0,60592.0,1.65256689]
[1722714392703,0.01024101,60593.0,60592.0,1.61941689]
[1722714392908,0.01024101,60593.0,60592.0,0.02]
[1722714393110,0.01020101,60593.0,60592.0,0.02]
[1722714393293,0.01020101,60593.0,60592.0,0.185038]
[1722714393539,0.01020101,60593.0,60592.0,0.02]
[1722714393740,0.01020101,60593.0,60592.0,0.68086489]
[1722714393934,0.01020101,60593.0,60592.0,1.34101689]
[1722714394361,0.01020101,60593.0,60592.0,1.34301689]
[1722714394562,0.01020101,60593.0,60592.0,1.34101689]
[1722714395319,0.01020101,60593.0,60592.0,1.81424289]
[1722714395489,0.01020101,60593.0,60592.0,1.47416689]
[1722714395699,0.01024101,60627.0,60613.0,1.174867]
[1722714396073,0.01024101,60627.0,60613.0,1.84660122]
[1722714396294,0.01024101,60627.0,60626.0,1.154618]
[1722714396487,0.01024101,60627.0,60626.0,1.60431922]
[1722714396725,0.01024101,60627.0,60626.0,0.924727]
[1722714396917,0.18369772,60640.0,60633.0,0.01981022]
[1722714397138,0.16575089,60639.0,60629.0,0.00981022]
[1722714397347,0.08291805,60636.0,60613.0,0.01981022]
[1722714397577,0.08291805,60634.0,60613.0,0.01981022]
[1722714397766,0.08291805,60634.0,60606.0,0.49750831]
[1722714397767,0.0001,60644.0,60633.0,0.08291805]
[1722714397969,0.0001,60644.0,60643.0,0.59742527]
[1722714398176,0.32969,60663.0,60647.0,0.01981022]
[1722714398379,0.164842,60664.0,60647.0,0.01981022]
[1722714398578,0.00018978,60661.0,60648.0,0.00157439]
[1722714398796,0.40735089,60656.0,60643.0,0.164899]
[1722714399003,0.16575089,60655.0,60643.0,0.164899]
[1722714399210,0.08291805,60663.0,60643.0,0.164899]
[1722714399425,0.08291805,60663.0,60639.0,0.01981022]
[1722714399426,0.01023,60654.0,60644.0,0.00157439]
[1722714399664,0.16575089,60653.0,60639.0,0.01981022]
[1722714399909,0.1837,60652.0,60649.0,0.00981022]
[1722714400133,0.01023,60654.0,60643.0,0.01]
[1722714400134,0.01023,60654.0,60653.0,0.51442622]
[1722714400352,0.11650966,60654.0,60653.0,0.01981022]
[1722714400553,0.11650966,60654.0,60653.0,0.68017711]
[1722714401089,0.11650966,60654.0,60653.0,1.33966511]
[1722714401295,0.11650966,60654.0,60653.0,1.43966511]
[1722714401512,0.1837,60678.0,60677.0,0.00981022]
[1722714401728,0.59105089,60678.0,60662.0,0.00981022]
[1722714401933,0.59105089,60678.0,60654.0,0.00157439]
[1722714401934,0.329678,60666.0,60654.0,0.00981022]
[1722714402136,0.31281805,60677.0,60656.0,0.18467322]
[1722714402137,0.2299,60677.0,60656.0,0.18467322]
[1722714402343,0.2299,60677.0,60656.0,0.01981022]
[1722714402344,0.329657,60669.0,60656.0,0.01981022]
[1722714402530,0.329657,60669.0,60652.0,0.08291805]
[1722714402531,0.2299,60677.0,60667.0,0.01981022]
[1722714402742,0.2299,60677.0,60672.0,0.01981022]
[1722714402932,0.2299,60677.0,60668.0,0.01981022]
[1722714403097,0.2299,60677.0,60674.0,0.01981022]
[1722714403298,0.2299,60677.0,60669.0,0.066035]
[1722714403299,0.164816,60674.0,60669.0,0.066035]
[1722714403502,0.16575089,60673.0,60669.0,0.066035]
[1722714403798,0.01461368,60681.0,60680.0,0.01981022]
[1722714404290,0.01461368,60681.0,60660.0,0.16732528]
[1722714404291,0.18036457,60681.0,60674.0,0.01981022]
[1722714404445,0.18036457,60681.0,60680.0,0.00981022]
[1722714404646,0.01461368,60681.0,60678.0,0.01981022]
[1722714405136,0.01461368,60681.0,60680.0,0.01981022]
[1722714405262,0.01461368,60681.0,60678.0,0.01981022]
[1722714405480,0.01461368,60681.0,60680.0,0.18460822]
[1722714405689,0.17251368,60699.0,60698.0,0.00981022]
[1722714405887,0.2299,60701.0,60700.0,0.00962044]
[1722714406092,0.16575089,60718.0,60709.0,0.01]
[1722714406093,0.2299,60717.0,60709.0,0.01]
[1722714406288,0.2299,60717.0,60709.0,0.01962044]
[1722714406490,0.2299,60717.0,60698.0,0.08291805]
[1722714406491,0.49750831,60714.0,60705.0,0.01962044]
[1722714406688,0.01023,60719.0,60703.0,0.01962044]
[1722714406891,0.164699,60717.0,60705.0,0.01962044]
[1722714407128,0.16575089,60716.0,60707.0,0.01962044]
[1722714407331,0.01023,60719.0,60705.0,0.01962044]
[1722714407469,0.01023,60719.0,60718.0,0.329391]
[1722714407675,0.01023,60719.0,60707.0,0.329447]
[1722714407874,0.01023,60719.0,60711.0,0.01962044]
[1722714408127,0.01023,60719.0,60709.0,0.01962044]
[1722714408273,0.01023,60719.0,60707.0,0.01962044]
[1722714408471,0.01023,60719.0,60703.0,0.01962044]
[1722714408472,0.24866894,60718.0,60703.0,0.01962044]
[1722714408739,0.1779,60718.0,60703.0,0.01962044]
[1722714409093,0.1779,60718.0,60694.0,0.01962044]
[1722714409094,0.2299,60710.0,60694.0,0.01962044]
[1722714409297,0.164755,60696.0,60695.0,0.00157439]
[1722714409496,0.164755,60696.0,60683.0,0.00157439]
[1722714409497,0.164788,60684.0,60683.0,0.00157439]
[1722714409705,0.1779,60695.0,60684.0,0.01962044]
[1722714410084,0.2416,60715.0,60681.0,0.00157439]
[1722714410085,0.18813,60719.0,60700.0,0.01962044]
[1722714410208,0.18813,60719.0,60696.0,0.01962044]
[1722714410209,0.49750831,60709.0,60696.0,0.01962044]
[1722714410409,0.16575089,60708.0,60697.0,0.00157439]
[1722714410610,0.16575089,60708.0,60694.0,0.01962044]
[1722714410810,0.16575089,60708.0,60695.0,0.01962044]
[1722714411084,0.16575089,60708.0,60696.0,0.01962044]
[1722714411212,0.16575089,60708.0,60682.0,0.06816789]
[1722714411571,0.16575089,60699.0,60682.0,0.01962044]
[1722714411741,0.16575089,60699.0,60686.0,0.01962044]
[1722714411941,0.16575089,60699.0,60692.0,0.01962044]
[1722714412234,0.16575089,60699.0,60687.0,0.00157439]
[1722714412452,0.16575089,60699.0,60697.0,0.00962044]
[1722714412603,0.737286,60701.0,60697.0,0.00962044]
[1722714412604,0.4078,60701.0,60697.0,0.00962044]
[1722714412822,0.4078,60701.0,60694.0,0.01962044]
[1722714413035,0.1779,60701.0,60700.0,0.01962044]
[1722714413198,0.329428,60712.0,60700.0,0.01962044]
[1722714413199,0.1779,60710.0,60700.0,0.01962044]
[1722714413400,0.16575089,60709.0,60698.0,0.01962044]
[1722714413660,0.16575089,60709.0,60706.0,0.00962044]
[1722714413893,0.16575089,60709.0,60695.0,0.08291805]
[1722714413894,0.16575089,60709.0,60707.0,0.00962044]
[1722714414090,0.33047089,60709.0,60708.0,0.00962044]
[1722714414316,0.1779,60710.0,60708.0,0.00962044]
[1722714414525,0.164722,60708.0,60707.0,0.00962044]
[1722714414758,0.164722,60708.0,60696.0,0.00157439]
[1722714414759,0.1779,60710.0,60709.0,0.01962044]
[1722714414981,0.01023,60719.0,60715.0,0.01962044]
[1722714415186,0.01023,60719.0,60716.0,0.00962044]
[1722714415399,0.01023,60719.0,60718.0,0.01962044]
[1722714415604,0.01023,60719.0,60716.0,0.01962044]
[1722714415813,0.16575089,60718.0,60707.0,0.01962044]
[1722714416017,0.16575089,60718.0,60702.0,0.08291805]
[1722714416018,0.16575089,60718.0,60708.0,0.01962044]
[1722714416464,0.1754,60726.0,60709.0,0.00157439]
[1722714416465,0.16575089,60717.0,60709.0,0.00157439]
[1722714416695,0.164717,60710.0,60709.0,0.00157439]
[1722714416891,0.00037956,60729.0,60710.0,0.01962044]
[1722714417095,0.329365,60723.0,60711.0,0.00157439]
[1722714417296,0.164712,60712.0,60707.0,0.00157439]
[1722714417500,0.164712,60712.0,60704.0,0.01962044]
[1722714417501,0.164713,60712.0,60704.0,0.01962044]
[1722714417708,0.16575089,60722.0,60705.0,0.00157439]
[1722714417910,0.164728,60706.0,60705.0,0.00157439]
[1722714418121,0.164745,60700.0,60698.0,0.000902]
[1722714418331,0.164745,60700.0,60699.0,0.00157439]
[1722714418548,0.164745,60700.0,60698.0,0.02052244]
[1722714418848,0.164745,60700.0,60681.0,0.2335]
[1722714418849,0.4078,60689.0,60676.0,0.00962044]
[1722714418992,0.329631,60674.0,60673.0,0.49750831]
[1722714419226,0.17687439,60687.0,60669.0,0.01962044]
[1722714419434,0.17687439,60687.0,60663.0,0.01962044]
[1722714419642,0.17567956,60682.0,60659.0,0.08291805]
[1722714419859,0.164831,60669.0,60665.0,0.01962044]
[1722714420079,0.1753,60680.0,60665.0,0.00962044]
[1722714420306,0.023,60686.0,60673.0,0.00962044]
[1722714420307,0.16575089,60679.0,60673.0,0.00962044]
[1722714420519,0.023,60686.0,60668.0,0.08291805]
[1722714420520,0.00157439,60686.0,60671.0,0.01962044]
[1722714420728,0.164815,60674.0,60665.0,0.01962044]
[1722714420936,0.164827,60670.0,60661.0,0.10253849]
[1722714421136,0.329607,60679.0,60665.0,0.01962044]
[1722714421355,0.164832,60668.0,60663.0,0.01962044]
[1722714421571,0.182,60668.0,60662.0,0.01]
[1722714421780,0.182,60668.0,60661.0,0.01962044]
[1722714421983,0.164858,60658.0,60657.0,0.01962044]
[1722714422195,0.329681,60665.0,60659.0,0.01962044]
[1722714422417,0.329681,60665.0,60645.0,0.1907]
[1722714422418,0.16575089,60665.0,60661.0,0.00962044]
[1722714422625,0.00157439,60664.0,60653.0,0.01912044]
[1722714422847,0.16575089,60663.0,60646.0,0.01912044]
[1722714423067,0.16575089,60663.0,60651.0,0.01912044]
[1722714423325,0.16575089,60663.0,60630.0,0.41278705]
[1722714423326,0.1753,60651.0,60647.0,0.066056]
[1722714423565,0.824565,60638.0,60637.0,0.00928]
[1722714424032,0.66048989,60638.0,60637.0,0.00928]
[1722714424446,0.99031589,60638.0,60637.0,0.00928]
[1722714425512,1.32014189,60638.0,60637.0,0.00928]
[1722714425715,1.16561589,60638.0,60637.0,0.00928]
[1722714425914,1.70044189,60638.0,60637.0,0.00928]
[1722714426276,2.03026789,60638.0,60637.0,0.00928]
[1722714426488,2.36116789,60638.0,60637.0,0.00928]
[1722714426701,2.36204745,60638.0,60637.0,0.00928]
[1722714426901,2.36116789,60638.0,60637.0,0.00928]
[1722714427363,2.36204745,60638.0,60637.0,0.00928]
[1722714427766,2.03134189,60638.0,60637.0,0.00928]
[1722714428811,2.03134189,60638.0,60611.0,0.00912044]
[1722714428812,0.164983,60612.0,60611.0,0.00912044]
[1722714429000,0.49571789,60612.0,60607.0,0.00912044]
[1722714429320,0.49571789,60612.0,60600.0,1.00928]
[1722714429321,0.164999,60607.0,60600.0,1.00928]
[1722714429505,0.16575089,60611.0,60606.0,0.00912044]
[1722714429712,0.16575089,60611.0,60602.0,0.01]
[1722714429713,0.16575089,60611.0,60604.0,0.00912044]
[1722714429864,0.16575089,60611.0,60610.0,0.00912044]
[1722714430067,0.182,60621.0,60615.0,0.00912044]
[1722714430270,0.182,60621.0,60601.0,0.08291805]
[1722714430271,0.2309,60623.0,60620.0,0.00912044]
[1722714430552,0.2309,60623.0,60617.0,0.01]
[1722714430553,0.16575089,60623.0,60622.0,0.00912044]
[1722714430765,0.34694,60628.0,60626.0,0.00912044]
[1722714430974,0.34694,60628.0,60619.0,0.01]
[1722714430975,0.16575089,60627.0,60624.0,0.00912044]
[1722714431205,0.16575089,60627.0,60626.0,0.00912044]
[1722714431483,0.16575089,60627.0,60622.0,0.00912044]
[1722714431484,0.164952,60624.0,60622.0,0.00912044]
[1722714431682,0.164955,60623.0,60619.0,0.01912044]
[1722714431954,0.16575089,60624.0,60623.0,0.00912044]
[1722714432186,0.16575089,60624.0,60619.0,0.01912044]
[1722714432299,0.16575089,60623.0,60611.0,0.00912044]
[1722714432507,0.3573,60628.0,60612.0,0.10203849]
[1722714432508,0.16575089,60622.0,60612.0,0.10203849]
[1722714432754,0.16575089,60622.0,60616.0,0.00912044]
[1722714432963,0.16575089,60622.0,60610.0,0.01912044]
[1722714433160,0.16575089,60622.0,60618.0,0.00912044]
[1722714433363,0.16575089,60622.0,60621.0,0.00912044]
[1722714433567,0.182,60628.0,60626.0,0.00912044]
[1722714433770,0.00956665,60641.0,60627.0,0.00912044]
[1722714434014,0.182,60637.0,60636.0,0.00912044]
[1722714434221,0.182,60637.0,60609.0,0.01912044]
[1722714434222,0.2416,60634.0,60609.0,0.01912044]
[1722714434433,0.18287956,60637.0,60618.0,0.00912044]
[1722714434434,0.2416,60624.0,60618.0,0.00912044]
[1722714434600,0.329863,60632.0,60631.0,0.00912044]
[1722714434814,0.2309,60633.0,60632.0,0.00912044]
[1722714435021,0.182,60637.0,60634.0,0.00912044]
[1722714435196,0.16575089,60636.0,60632.0,0.00912044]
[1722714435398,0.16575089,60636.0,60618.0,0.08291805]
[1722714435399,0.16575089,60636.0,60628.0,0.01912044]
[1722714435599,0.2309,60639.0,60632.0,0.01912044]
[1722714435803,0.2309,60639.0,60634.0,0.00912044]
[1722714435804,0.16732528,60638.0,60634.0,0.00912044]
[1722714436002,0.329853,60634.0,60632.0,0.00912044]
[1722714436204,0.16575089,60638.0,60636.0,0.00912044]
[1722714436205,0.00157439,60637.0,60636.0,0.00912044]
[1722714436812,0.00157439,60637.0,60634.0,0.00912044]
[1722714437009,0.00157439,60637.0,60632.0,0.01912044]
[1722714437185,0.00157439,60637.0,60636.0,0.00912044]
[1722714437386,0.02586879,60638.0,60637.0,0.00912044]
[1722714437975,0.02586879,60638.0,60636.0,0.00912044]
[1722714438222,0.02586879,60638.0,60637.0,0.00912044]
[1722714438802,0.182,60644.0,60636.0,0.00912044]
[1722714439024,0.329805,60642.0,60636.0,0.00912044]
[1722714439203,0.329805,60642.0,60634.0,0.01912044]
[1722714439204,0.49556189,60641.0,60634.0,0.01912044]
[1722714439599,0.182,60644.0,60620.0,0.00912044]
[1722714439600,0.1753,60629.0,60620.0,0.00912044]
[1722714439798,0.16575089,60628.0,60620.0,0.01912044]
[1722714439928,0.494879,60621.0,60620.0,0.00912044]
[1722714440113,0.16575089,60628.0,60627.0,0.00912044]
[1722714440309,0.33069089,60628.0,60627.0,0.00912044]
[1722714440758,0.33069089,60628.0,60609.0,0.2343]
[1722714440759,0.34105089,60628.0,60618.0,0.00912044]
[1722714440976,0.023,60627.0,60621.0,0.00912044]
[1722714441164,0.1,60636.0,60621.0,0.00912044]
[1722714441165,0.164954,60623.0,60621.0,0.00912044]
[1722714441416,0.494836,60626.0,60625.0,0.00912044]
[1722714441672,0.1753,60626.0,60612.0,0.00912044]
[1722714441853,0.1753,60626.0,60610.0,0.00912044]
[1722714441854,0.1753,60618.0,60610.0,0.00912044]
[1722714442055,0.1753,60615.0,60608.0,0.00912044]
[1722714442245,0.1753,60615.0,60611.0,0.00912044]
[1722714442381,0.16575089,60614.0,60611.0,0.00912044]
[1722714442582,0.329962,60613.0,60606.0,0.00912044]
[1722714442787,0.330027,60601.0,60598.0,0.00912044]
[1722714443012,0.33076389,60601.0,60585.0,0.1854]
[1722714443184,0.33076389,60601.0,60583.0,0.08291805]
[1722714443185,1.01669949,60601.0,60597.0,0.00912044]
[1722714443388,0.68667249,60601.0,60583.0,0.24798005]
[1722714443592,0.68667249,60601.0,60592.0,0.01912044]
[1722714443813,0.68667249,60601.0,60600.0,1.00428]
[1722714444017,0.68667249,60601.0,60600.0,1.01340044]
[1722714444251,0.19163249,60601.0,60600.0,1.00428]
[1722714444453,0.85168649,60601.0,60600.0,1.00428]
[1722714444604,1.01669949,60601.0,60600.0,1.00428]
[1722714445490,1.34672649,60601.0,60600.0,1.00428]
[1722714445692,1.36972649,60601.0,60600.0,1.00428]
[1722714445925,1.54502649,60601.0,60600.0,1.00428]
[1722714446403,0.88497249,60601.0,60600.0,1.01340044]
[1722714446618,0.86197249,60601.0,60600.0,1.00428]
[1722714446863,0.83609089,60601.0,60600.0,1.00428]
[1722714447067,1.16611789,60601.0,60600.0,1.00428]
[1722714447441,1.16611789,60601.0,60600.0,1.01340044]
[1722714447782,1.16611789,60601.0,60600.0,1.00428]
[1722714447988,1.18911789,60601.0,60600.0,1.00428]
[1722714448235,1.18911789,60601.0,60600.0,1.01340044]
[1722714448455,0.85909089,60601.0,60600.0,1.00428]
[1722714448662,1.18911789,60601.0,60600.0,1.00428]
[1722714448829,0.83609089,60601.0,60600.0,1.00428]
[1722714449033,0.16575089,60601.0,60600.0,1.00428]
[1722714449321,1.58331789,60601.0,60600.0,0.13358556]
[1722714449471,1.25329089,60601.0,60600.0,0.05928837]
[1722714449673,0.58295089,60601.0,60600.0,0.05928837]
[1722714449916,0.16575089,60601.0,60600.0,0.05928837]
[1722714450321,0.83609089,60601.0,60600.0,0.05928837]
[1722714450569,1.49614489,60601.0,60600.0,0.05928837]
[1722714451366,0.16575089,60601.0,60600.0,0.06840881]
[1722714451479,0.35664804,60601.0,60600.0,0.06840881]
[1722714451692,0.16575089,60601.0,60600.0,0.06840881]
[1722714452112,0.16575089,60601.0,60600.0,0.07840881]
[1722714452354,0.16075089,60601.0,60600.0,0.07840881]
[1722714452557,0.32576389,60601.0,60600.0,0.05928837]
[1722714452766,0.65579089,60601.0,60600.0,0.05928837]
[1722714453180,0.83109089,60601.0,60600.0,0.05928837]
[1722714453385,0.16075089,60601.0,60600.0,0.05928837]
[1722714453591,0.32576389,60601.0,60600.0,0.05928837]
[1722714453795,0.16075089,60601.0,60600.0,0.06840881]
[1722714454015,0.32576389,60601.0,60600.0,0.05928837]
[1722714454239,0.65579089,60601.0,60600.0,0.05928837]
[1722714454448,0.98581789,60601.0,60600.0,0.05928837]
[1722714454623,1.01170101,60601.0,60600.0,0.05928837]
[1722714454825,0.98581789,60601.0,60600.0,0.05928837]
[1722714455057,1.16111789,60601.0,60600.0,0.05928837]
[1722714455209,1.18411789,60601.0,60600.0,0.04928837]
[1722714455409,1.51414489,60601.0,60600.0,0.04928837]
[1722714455774,1.18411789,60601.0,60600.0,0.04928837]
[1722714455973,0.18375089,60601.0,60600.0,0.05840881]
[1722714456206,0.16075089,60601.0,60600.0,0.06840881]
[1722714456687,0.16075089,60601.0,60600.0,0.04928837]
[1722714456994,0.32576389,60601.0,60600.0,0.04928837]
[1722714457186,0.65579089,60601.0,60600.0,0.04928837]
[1722714457301,0.65156878,60601.0,60600.0,0.04928837]
[1722714457500,0.98159578,60601.0,60600.0,0.04928837]
[1722714458159,1.00747883,60601.0,60600.0,0.04928837]
[1722714458501,1.36050583,60601.0,60600.0,0.04928837]
[1722714458709,1.03047883,60601.0,60600.0,0.04928837]
[1722714458907,1.03047883,60601.0,60600.0,0.06840881]
[1722714458908,0.02588305,60601.0,60600.0,0.06840881]
[1722714459468,0.16732528,60608.0,60601.0,0.00912044]
[1722714459670,0.16732528,60608.0,60600.0,0.04928837]
[1722714459671,0.825067,60601.0,60600.0,0.04928837]
[1722714459846,1.32084489,60601.0,60600.0,0.04928837]
[1722714460048,0.16575089,60601.0,60600.0,0.05840881]
[1722714460251,0.16075089,60601.0,60600.0,0.05840881]
[1722714460433,0.32576389,60601.0,60600.0,0.04928837]
[1722714460634,0.32576389,60601.0,60600.0,0.05840881]
[1722714460635,0.16075089,60601.0,60600.0,0.05840881]
[1722714461178,0.50106389,60601.0,60600.0,0.04928837]
[1722714461354,1.16111789,60601.0,60600.0,0.04928837]
[1722714461554,1.51414489,60601.0,60600.0,0.04928837]
[1722714461752,1.18411789,60601.0,60600.0,0.04928837]
[1722714462056,1.51414489,60601.0,60600.0,0.04928837]
[1722714462327,1.84417189,60601.0,60600.0,0.04928837]
[1722714462652,1.84217189,60601.0,60600.0,0.04928837]
[1722714463270,1.94217189,60601.0,60600.0,0.04928837]
[1722714463475,1.94017189,60601.0,60600.0,0.04928837]
[1722714463672,1.94017189,60601.0,60600.0,0.05028837]
[1722714464080,1.9660573,60601.0,60600.0,0.05028837]
[1722714464259,1.93817189,60601.0,60600.0,0.05028837]
[1722714464675,2.94091156,60601.0,60600.0,5.9e-07]
[1722714464887,0.1753,60585.0,60576.0,0.00928]
[1722714465101,0.83628789,60577.0,60576.0,0.00928]
[1722714465288,1.16644589,60577.0,60576.0,0.00928]
[1722714465515,1.18944589,60577.0,60576.0,0.00928]
[1722714465735,1.51960389,60577.0,60576.0,0.00928]
[1722714465934,1.51760389,60577.0,60576.0,0.00928]
[1722714466138,0.1753,60576.0,60575.0,0.00912044]
[1722714466391,0.1753,60576.0,60568.0,0.01]
[1722714466392,0.495253,60575.0,60574.0,0.00912044]
[1722714466593,0.16375089,60575.0,60574.0,0.00912044]
[1722714467270,0.16375089,60575.0,60570.0,0.01]
[1722714467271,0.18964403,60575.0,60572.0,0.00912044]
[1722714467484,0.33795089,60575.0,60570.0,0.01912044]